Workbook

Sheet LønOgTimeberegning
A1: Tids indtasnings formatet er XX:XX | B1: I rubrikken timeLøn indættes satsen | H1: Indtasnings formatet er i X,XX og hundred-dele format. | I1: Programmet genere automatisk tid i Timebanken, hvis du ikke har fuld tid pr. dag(det bliver så afspadsering).Du skal manuelt fjerne den generet tid( afspadsering) i rubrikken FRI UDEN LØN, Hvis du ikke vil have den regristreret i Timebanken. | K1: I rubrikken indsættes satsen | M1: I rubrikken indsættes satsen | N1: Du skal bruge BACKSPACE hvis du har indtastet forkert tid, til at fjerne den forkerte indtastning. Så ødelægger du ikke formlerne.
C2: Overført timebank saldo fra året før | H2: 0 | J2: =H2/24 -> 0
A3: 2021 | B3: Hverdag 07.00-15.15 Timeløn | C3: Hverdag 15.15 - 17.15 Timeløn incl. Tillæg på 50% | D3: Hverdag 17.15 - 07.00 Timeløn incl. Tillæg på 100% | F3: Lørdag 00.00 - 24.00 Timeløn incl. Tillæg på 100 % | H3: Søndag 00.00 - 24.00 Timeløn incl. Tillæg på 100 % | J3: Time Bank Saldo Total | K3: Syge løns sats | M3: Ferie Sats Efter den nye ferielov
B4: 100 | C4: =B4/2 -> 50 | D4: =B4 -> 100 | F4: =B4 -> 100 | H4: =B4 -> 100 | J4: =SUM(J19:J25)-SUM(I19:I25)+J2+SUM(L19:L35) -> -0.2604166667 | K4: 100 | M4: 100
B6: Mandag Til | C6: Start: | D6: 07:00:00 | E6: 15:15:00 | F6: 17:15:00
B7: Torsdag | C7: Slut: | D7: 15:15:00 | E7: 17:15:00 | F7: 07:00:00
B9: Fredag | C9: Start: | D9: 07:00:00 | E9: 13:55:00 | F9: 15:55:00
C10: Slut: | D10: 13:55:00 | E10: 15:55:00 | F10: 07:00:00
B12: Lørdag | C12: Start: | D12: 00:00:00 | E12: 00:00:00
C13: Slut: | D13: 00:00:00 | E13: 00:00:00
J14: Pauser formiddag 15 min middag 20 min
B15: Søndag | C15: Start: | D15: 00:00:00 | E15: 00:00:00
C16: Slut: | D16: 1 | E16: 00:00:00
A18: 1 | B18: Uge dag | C18: Start | D18: Slut | E18: ArbejdsTid Incl. Pause | F18: Overtid 50% | G18: Overtid 100% Man-lør | H18: Overtid 100% Søndag | I18: Tid Sat ind I Timebank (Afspasering= MinusTid) | J18: Tid Indsat I Timebank, OVERTID timer | K18: Indsæt Pause Manuel | L18: Fri uden løn | M18: Timer for sygeløn | N18: Ferie Sats antal enheder | O18: mellem regning for feriepenge | P18: I alt | R18: Løn | S18: I alt
A19: =DATE($A$3,1,7*A18-3-WEEKDAY(DATE($A$3,,),3)) -> 2021-01-04 | B19: =HelligdagsNavn(A19,1,1,1,1,1,1,1) -> Mandag | C19: 0.2916666667 | D19: 0.375 | E19: =IF(WEEKDAY(A19,2)<6,ColTime($D$6,$D$7,C19,D19),0) -> 0.08333333333 | F19: =IF(WEEKDAY(A19,2)<6,ColTime($E$6,$E$7,C19,D19),0) -> 0 | G19: =IF(WEEKDAY(A19,2)<6,ColTime($F$6,$F$7,C19,D19),0) -> 0 | I19: =IF(E19=0,0,($D$7-$D$6)-E19) -> 0.2604166667 | J19: =IF(E19=0,0,($D$7-$D$6)-($D$7-$D$6))+F19+G19 -> 0 | M19: 0 | P19: =SUM(E19:G19)-IF(C19>0,D19>0)*K19 -> 0.08333333333 | R19: =(((IF(E19>0,)+(P19*$B$4))+(F19*$C$4)+(G19*$D$4)+(M19*$K$4)))*24+(N19*$M$4) -> 200 | S19: =SUM(R19:R25) -> 2616.666667
A20: =A19+1 -> 2021-01-05 | B20: Tirsdag | C20: 0.2916666667 | D20: 0.6354166667 | E20: =IF(WEEKDAY(A20,2)<6,ColTime($D$6,$D$7,C20,D20),0) -> 0.34375 | F20: =IF(WEEKDAY(A20,2)<6,ColTime($E$6,$E$7,C20,D20),0) -> 0 | G20: =IF(WEEKDAY(A20,2)<6,ColTime($F$6,$F$7,C20,D20),0) -> 0 | I20: =IF(E20=0,0,($D$7-$D$6)-E20) -> 0 | J20: =IF(E20=0,0,($D$7-$D$6)-($D$7-$D$6))+F20+G20 -> 0 | K20: 0.02430555556 | M20: 0 | P20: =SUM(E20:G20)-IF(C20>0,D20>0)*K20 -> 0.3194444444 | R20: =(((IF(E20>0,)+(P20*$B$4))+(F20*$C$4)+(G20*$D$4)+(M20*$K$4)))*24+(N20*$M$4) -> 766.6666667
A21: 2021-01-06 | B21: Onsdag | C21: 0.2916666667 | D21: 0.6354166667 | E21: =IF(WEEKDAY(A21,2)<6,ColTime($D$6,$D$7,C21,D21),0) -> 0.34375 | F21: 0 | G21: =IF(WEEKDAY(A21,2)<6,ColTime($F$6,$F$7,C21,D21),0) -> 0 | I21: =IF(E21=0,0,($D$7-$D$6)-E21) -> 0 | J21: 0 | M21: 0 | P21: 0.34375 | R21: =(((IF(E21>0,)+(P21*$B$4))+(F21*$C$4)+(G21*$D$4)+(M21*$K$4)))*24+(N21*$M$4) -> 825
A22: 2021-01-07 | B22: Torsdag | C22: 0.2916666667 | D22: 0.6354166667 | E22: =IF(WEEKDAY(A22,2)<6,ColTime($D$6,$D$7,C22,D22),0) -> 0.34375 | F22: 0 | G22: =IF(WEEKDAY(A22,2)<6,ColTime($F$6,$F$7,C22,D22),0) -> 0 | I22: =IF(E22=0,0,($D$7-$D$6)-E22) -> 0 | J22: =IF(E22=0,0,($D$7-$D$6)-($D$7-$D$6))+F22+G22 -> 0 | M22: 0 | P22: 0.34375 | R22: 825
A23: 2021-01-08 | B23: Fredag | E23: =IF(WEEKDAY(A23,2)<6,ColTime($D$9,$D$10,C23,D23),0) -> 0 | F23: =IF(WEEKDAY(A23,2)<6,ColTime($E$9,$E$10,C23,D23),0) -> 0 | G23: =IF(WEEKDAY(A23,2)<6,ColTime($F$9,$F$10,C23,D23),0) -> 0 | I23: =IF(E23=0,0,($D$10-$D$9)-E23) -> 0 | J23: =IF(E23=0,0,($D$7-$D$6)-($D$7-$D$6))+F23+G23 -> 0 | M23: 0 | P23: 0 | R23: 0
A24: 2021-01-09 | B24: Lørdag | G24: =IF(WEEKDAY(A24,2)=6,ColTime($E$12,$E$13,C24,D24),0) -> 0 | J24: =G24 -> 0 | P24: =SUM(G24-K24) -> 0 | R24: =(P24*$F$4)*24 -> 0
A25: 2021-01-10 | B25: Søndag | H25: =IF(WEEKDAY(A25,2)=7,D25-C25+(D25<C25),IF(AND(WEEKDAY(A25,2)=6,D25<C25),ColTime($E$15,$E$16,D16,D25),0)) -> 0 | J25: =H25 -> 0 | P25: =SUM(H25-K25) -> 0 | R25: =(P25*$H$4)*24 -> 0
M26: Uge Timer I alt | P26: =SUM(P19:P25) -> 1.090277778
A28: 2 | B28: Uge dag | C28: Start | D28: Slut | E28: ArbejdsTid Incl. Pause | F28: Overtid 50% | G28: Overtid 100% Man-lør | H28: Overtid 100% Søndag | I28: Tid Fratrukket Timebank (Afspasering) | J28: Tid Indsat I Timebank, OVERTID timer | K28: indsæt Ekstra Pause | L28: Fri uden løn | M28: Timer for sygeløn | N28: Ferie Sats antal enheder | O28: mellem regning for feriepenge | P28: I alt | R28: Løn | S28: I alt
A29: =DATE($A$3,1,7*A28-3-WEEKDAY(DATE($A$3,,),3)) -> 2021-01-11 | B29: =HelligdagsNavn(A29,1,1,1,1,1,1,1) -> Mandag | C29: 0.2916666667 | D29: 0.6354166667 | E29: =IF(WEEKDAY(A29,2)<6,ColTime($D$6,$D$7,C29,D29),0) -> 0.34375 | F29: =IF(WEEKDAY(A29,2)<6,ColTime($E$6,$E$7,C29,D29),0) -> 0 | G29: =IF(WEEKDAY(A29,2)<6,ColTime($F$6,$F$7,C29,D29),0) -> 0 | I29: =IF(E29=0,0,($D$7-$D$6)-E29) -> 0 | J29: =IF(E29=0,0,($D$7-$D$6)-($D$7-$D$6))+F29+G29 -> 0 | K29: =K15 -> 0 | M29: 0 | P29: =SUM(E29:G29)-IF(C29>0,D29>0)-K19-K29+I29 -> -0.65625 | R29: =(((IF(E29>0,(E29-$K$15))*$B$4)+(F29*$C$4)+(G29*$D$4)+(M29*$K$4)))*24+(N29*$M$4) -> 825 | S29: =SUM(R29:R35) -> 3300
A30: =A29+1 -> 2021-01-12 | B30: Tirsdag | C30: 0.2916666667 | D30: 0.6354166667 | E30: =IF(WEEKDAY(A30,2)<6,ColTime($D$6,$D$7,C30,D30),0) -> 0.34375 | F30: 0 | G30: =IF(WEEKDAY(A30,2)<6,ColTime($F$6,$F$7,C30,D30),0) -> 0 | I30: =IF(E30=0,0,($D$7-$D$6)-E30) -> 0 | J30: =IF(E30=0,0,($D$7-$D$6)-($D$7-$D$6))+F30+G30 -> 0 | M30: 0 | P30: =SUM(E30:G30)-IF(C30>0,D30>0,K30>0)*$K$15-K30+I30 -> 0.34375 | R30: =(((IF(E30>0,(E30-$K$15))*$B$4)+(F30*$C$4)+(G30*$D$4)+(M30*$K$4)))*24+(N30*$M$4) -> 825
A31: 2021-01-13 | B31: Onsdag | C31: 0.2916666667 | D31: 0.6354166667 | E31: =IF(WEEKDAY(A31,2)<6,ColTime($D$6,$D$7,C31,D31),0) -> 0.34375 | F31: 0 | G31: =IF(WEEKDAY(A31,2)<6,ColTime($F$6,$F$7,C31,D31),0) -> 0 | I31: =IF(E31=0,0,($D$7-$D$6)-E31) -> 0 | J31: 0 | M31: 0 | P31: =SUM(E31:G31)-IF(C31>0,D31>0,K31>0)*$K$15-K31+I31 -> 0.34375 | R31: 825
A32: 2021-01-14 | B32: Torsdag | C32: 0.2916666667 | D32: 0.6354166667 | E32: =IF(WEEKDAY(A32,2)<6,ColTime($D$6,$D$7,C32,D32),0) -> 0.34375 | F32: 0 | G32: =IF(WEEKDAY(A32,2)<6,ColTime($F$6,$F$7,C32,D32),0) -> 0 | I32: =IF(E32=0,0,($D$7-$D$6)-E32) -> 0 | J32: =IF(E32=0,0,($D$7-$D$6)-($D$7-$D$6))+F32+G32 -> 0 | M32: 0 | P32: =SUM(E32:G32)-IF(C32>0,D32>0,K32>0)*$K$15-K32+I32 -> 0.34375 | R32: 825
A33: 2021-01-15 | B33: Fredag | E33: =IF(WEEKDAY(A33,2)<6,ColTime($D$9,$D$10,C33,D33),0) -> 0 | F33: =IF(WEEKDAY(A33,2)<6,ColTime($E$9,$E$10,C33,D33),0) -> 0 | G33: =IF(WEEKDAY(A33,2)<6,ColTime($F$9,$F$10,C33,D33),0) -> 0 | I33: =IF(E33=0,0,($D$10-$D$9)-E33) -> 0 | J33: =IF(E33=0,0,($D$7-$D$6)-($D$7-$D$6))+F33+G33 -> 0 | M33: 0 | P33: =SUM(E33:G33)-IF(C33>0,D33>0,K33>0)*$K$15-K33+I33 -> 0 | R33: 0
A34: 2021-01-16 | B34: Lørdag | G34: =IF(WEEKDAY(A34,2)=6,ColTime($E$12,$E$13,C34,D34),0) -> 0 | J34: =G34 -> 0 | P34: =SUM(G34-K34) -> 0 | R34: =(P34*$F$4)*24 -> 0
A35: 2021-01-17 | B35: Søndag | H35: =IF(WEEKDAY(A35,2)=7,D35-C35+(D35<C35),IF(AND(WEEKDAY(A35,2)=6,D35<C35),ColTime($E$15,$E$16,#REF!,D35),0)) -> 0 | J35: =H35 -> 0 | P35: =SUM(H35-K35) -> 0 | R35: =(P35*$H$4)*24 -> 0
M36: Uge Timer I alt | P36: =SUM(P29:P35) -> 0.375
A38: 3 | B38: Uge dag | C38: Start | D38: Slut | E38: ArbejdsTid Incl. Pause | F38: Overtid 50% | G38: Overtid 100% Man-lør | H38: Overtid 100% Søndag | I38: Tid Fratrukket Timebank (Afspasering) | J38: Tid Indsat I Timebank, OVERTID timer | K38: indsæt Ekstra Pause | L38: Fri uden løn | M38: Timer for sygeløn | N38: Ferie Sats antal enheder | O38: mellem regning for feriepenge | P38: I alt | R38: Løn | S38: I alt | T38: Januar | U38: Tid
A39: =DATE($A$3,1,7*A38-3-WEEKDAY(DATE($A$3,,),3)) -> 2021-01-18 | B39: =HelligdagsNavn(A39,1,1,1,1,1,1,1) -> Mandag | C39: 0.2916666667 | D39: 0.6354166667 | E39: =IF(WEEKDAY(A39,2)<6,ColTime($D$6,$D$7,C39,D39),0) -> 0.34375 | F39: =IF(WEEKDAY(A39,2)<6,ColTime($E$6,$E$7,C39,D39),0) -> 0 | G39: =IF(WEEKDAY(A39,2)<6,ColTime($F$6,$F$7,C39,D39),0) -> 0 | I39: =IF(E39=0,0,($D$7-$D$6)-E39) -> 0 | J39: =IF(E39=0,0,($D$7-$D$6)-($D$7-$D$6))+F39+G39 -> 0 | M39: 0 | P39: =SUM(E39:G39)-IF(C39>0,D39>0,K39>0)*$K$15-K39+I39 -> 0.34375 | R39: =(((IF(E39>0,(E39-$K$15))*$B$4)+(F39*$C$4)+(G39*$D$4)+(M39*$K$4)))*24+(N39*$M$4) -> 825 | S39: =SUM(R39:R40) -> 1650 | T39: Løn | U39: For Perioden
A40: =A39+1 -> 2021-01-19 | B40: Tirsdag | C40: 0.2916666667 | D40: 0.6354166667 | E40: =IF(WEEKDAY(A40,2)<6,ColTime($D$6,$D$7,C40,D40),0) -> 0.34375 | F40: 0 | G40: =IF(WEEKDAY(A40,2)<6,ColTime($F$6,$F$7,C40,D40),0) -> 0 | I40: 0 | J40: 0 | M40: 0 | P40: 0.34375 | R40: 825 | T40: =SUM(S19:S40) -> 7566.666667 | U40: =SUM(P19:P25,P29:P35,P39:P40) -> 2.152777778
A41: 2021-01-20 | B41: Onsdag | E41: =IF(WEEKDAY(A41,2)<6,ColTime($D$6,$D$7,C41,D41),0) -> 0 | F41: 0 | G41: =IF(WEEKDAY(A41,2)<6,ColTime($F$6,$F$7,C41,D41),0) -> 0 | I41: 0 | J41: 0 | M41: 0 | P41: 0 | R41: 0 | S41: =SUM(R41:R45) -> 0
A42: 2021-01-21 | B42: Torsdag | E42: =IF(WEEKDAY(A42,2)<6,ColTime($D$6,$D$7,C42,D42),0) -> 0 | F42: 0 | G42: =IF(WEEKDAY(A42,2)<6,ColTime($F$6,$F$7,C42,D42),0) -> 0 | I42: 0 | J42: 0 | M42: 0 | P42: 0 | R42: 0
A43: 2021-01-22 | B43: Fredag | E43: =IF(WEEKDAY(A43,2)<6,ColTime($D$9,$D$10,C43,D43),0) -> 0 | F43: =IF(WEEKDAY(A43,2)<6,ColTime($E$9,$E$10,C43,D43),0) -> 0 | G43: =IF(WEEKDAY(A43,2)<6,ColTime($F$9,$F$10,C43,D43),0) -> 0 | I43: =IF(E43=0,0,($D$10-$D$9)-E43) -> 0 | J43: 0 | M43: 0 | P43: 0 | R43: 0
A44: 2021-01-23 | B44: Lørdag | G44: =IF(WEEKDAY(A44,2)=6,ColTime($E$12,$E$13,C44,D44),0) -> 0 | J44: =G44 -> 0 | P44: =SUM(G44-K44) -> 0 | R44: =(P44*$F$4)*24 -> 0
A45: 2021-01-24 | B45: Søndag | H45: =IF(WEEKDAY(A45,2)=7,D45-C45+(D45<C45),IF(AND(WEEKDAY(A45,2)=6,D45<C45),ColTime($E$15,$E$16,#REF!,D45),0)) -> 0 | J45: =H45 -> 0 | P45: =SUM(H45-K45) -> 0 | R45: =(P45*$H$4)*24 -> 0
M46: Uge Timer I alt | P46: =SUM(P39:P45) -> 0.6875

Sheet Januar
A1: Lønseddel
C4: Trækprocent: | D4: 39
C5: M.fradrag: | D5: 0
C6: Indu. Pension | D6: 4
C7: Pen. Fritvalg | D7: 4
C8: AM Bidrag | D8: 8
C9: fritvalg | D9: 9.25
C10: Ferieopsparing | D10: 12.5
C11: Fritvalg timeløn | D11: 5.25
A14: LØN | E14: =LønOgTimeberegning!T40 -> 7566.666667
A16: Sygeløn
A17: overtid
A18: Feriefridag
A22: Arbejderskiver sundhedfor. | C22: 47.19
A23: Ferie penge 12.5% | B23: =E14 -> 7566.666667 | C23: =SUM(B23*D10/100) -> 945.8333333
A24: Fritvalg 9,25% | B24: =E14 -> 7566.666667 | C24: =SUM(B24*D9/100) -> 699.9166667
A25: pension betaling Fritvalg 4 % | B25: =E14 -> 7566.666667 | D25: =SUM(B25*D7/100) -> 302.6666667
A26: Fritvalg konto timeløn 5,25% | B26: =E14 -> 7566.666667 | C26: =SUM(B26*D11/100) -> 397.25
A27: Industriens pension 4% | B27: =SUM(E14,C23,C24) -> 9212.416667 | E27: =SUM(B27*D6/100) -> 368.4966667
A28: Atp bidrag | B28: =D14 -> 0 | E28: 94.67
A30: Ferieberettiget indkomst
A31: Arbejdsmarkedsbidrag: | C31: =E14-E27-E28+C22 -> 7150.69 | E31: =SUM(C31*D8/100) -> 572.0552
A32: Nettoløn: | E32: =E14-SUM(E17:E31) -> 6531.4448
A34: A-skattepligtig indkomst | D34: =+E32 -> 6531.4448
A35: Månedligt fradrag: | D35: =D5 -> 0
A36: Skattegrundlag: | D36: =+D34-D35 -> 6531.4448
A38: Skat: | B38: 39 % af | C38: =+D36 -> 6531.4448 | E38: =ROUND(+(C38/100)*D4,0) -> 2547
B40: Personale foreningen | C40: 50 | E40: =C40 -> 50
A41: Løn til udbetaling: | E41: =+E32-SUM(E38:E40) -> 3934.4448
A43: Industrien pension udbetaling | B43: 2740 | C43: -0.47 | D43: =SUM(B43*47/100) -> 1287.8 | E43: =SUM(B43-D43) -> 1452.2
A44: Atp udbetaling | B44: 1925 | C44: -0.47 | D44: =SUM(B44*47/100) -> 904.75 | E44: =SUM(B44-D44) -> 1020.25
A46: Løn udbetaling total | E46: =SUM(E41:E44) -> 6406.8948
A48: Saldi: | C48: Perioden | E48: År til dato
A49: AM indkomst | C49: =+C31 -> 7150.69 | E49: =SUM(C49) -> 7150.69
A50: A-Indkomst | C50: =+D34 -> 6531.4448 | E50: 6531.4448
A51: A Skat | C51: =+E38 -> 2547 | E51: 2547
A52: AM bidrag | C52: =+E31 -> 572.0552 | E52: 572.0552
A53: Ferieberettiget indkomst | C53: =SUM(E14) -> 7566.666667 | E53: 7566.666667
A54: FerieOpsparing | C54: =C23 -> 945.8333333 | E54: 945.8333333

Sheet Februar
A1: Lønseddel
C4: Trækprocent: | D4: 39
C5: M.fradrag: | D5: 0
C6: Indu. Pension | D6: 4
C7: Pen. Fritvalg | D7: 4
C8: AM Bidrag | D8: 8
C9: fritvalg | D9: 9.25
C10: Ferieopsparing | D10: 12.5
C11: Fritvalg timeløn | D11: 5.25
A14: LØN | E14: =LønOgTimeberegning!#REF! -> 
A16: Sygeløn
A17: overtid
A18: Feriefridag
A22: Arbejderskiver sundhedfor. | C22: 47.19
A23: Ferie penge 12.5% | B23: =E14 ->  | C23: =SUM(B23*D10/100) -> 
A24: Fritvalg 9,25% | B24: =E14 ->  | C24: =SUM(B24*D9/100) -> 
A25: pension betaling Fritvalg 4 % | B25: =E14 ->  | D25: =SUM(B25*D7/100) -> 
A26: Fritvalg konto timeløn 5,25% | B26: =E14 ->  | C26: =SUM(B26*D11/100) -> 
A27: Industriens pension 4% | B27: =SUM(E14,C23,C24) ->  | E27: =SUM(B27*D6/100) -> 
A28: Atp bidrag | B28: =D14 -> 0 | E28: 94.67
A30: Ferieberettiget indkomst
A31: Arbejdsmarkedsbidrag: | C31: =E14-E27-E28+C22 ->  | E31: =SUM(C31*D8/100) -> 
A32: Nettoløn: | E32: =E14-SUM(E17:E31) -> 
A34: A-skattepligtig indkomst | D34: =+E32 -> 
A35: Månedligt fradrag: | D35: =D5 -> 0
A36: Skattegrundlag: | D36: =+D34-D35 -> 
A38: Skat: | B38: 39 % af | C38: =+D36 ->  | E38: =ROUND(+(C38/100)*D4,0) -> 
B40: Personale foreningen | C40: 50 | E40: =C40 -> 50
A41: Løn til udbetaling: | E41: =+E32-SUM(E38:E40) -> 
A43: Industrien pension udbetaling | B43: 2740 | C43: -0.47 | D43: =SUM(B43*47/100) -> 1287.8 | E43: =SUM(B43-D43) -> 1452.2
A44: Atp udbetaling | B44: 1925 | C44: -0.47 | D44: =SUM(B44*47/100) -> 904.75 | E44: =SUM(B44-D44) -> 1020.25
A46: Løn udbetaling total | E46: =SUM(E41:E44) -> 
A48: Saldi: | C48: Perioden | E48: År til dato
A49: AM indkomst | C49: =+C31 ->  | E49: =SUM(C49) -> 
A50: A-Indkomst | C50: =+D34 -> 
A51: A Skat | C51: =+E38 -> 
A52: AM bidrag | C52: =+E31 -> 
A53: Ferieberettiget indkomst | C53: =SUM(E14) -> 
A54: FerieOpsparing | C54: =C23 -> 

Sheet Marts
A1: Lønseddel
C4: Trækprocent: | D4: 39
C5: M.fradrag: | D5: 0
C6: Indu. Pension | D6: 4
C7: Pen. Fritvalg | D7: 4
C8: AM Bidrag | D8: 8
C9: fritvalg | D9: 9.25
C10: Ferieopsparing | D10: 12.5
C11: Fritvalg timeløn | D11: 5.25
A14: LØN | E14: =LønOgTimeberegning!#REF! -> 
A16: Sygeløn
A17: overtid
A18: Feriefridag
A22: Arbejderskiver sundhedfor. | C22: 47.19
A23: Ferie penge 12.5% | B23: =E14 ->  | C23: =SUM(B23*D10/100) -> 
A24: Fritvalg 9,25% | B24: =E14 ->  | C24: =SUM(B24*D9/100) -> 
A25: pension betaling Fritvalg 4 % | B25: =E14 ->  | D25: =SUM(B25*D7/100) -> 
A26: Fritvalg konto timeløn 5,25% | B26: =E14 ->  | C26: =SUM(B26*D11/100) -> 
A27: Industriens pension 4% | B27: =SUM(E14,C23,C24) ->  | E27: =SUM(B27*D6/100) -> 
A28: Atp bidrag | B28: =D14 -> 0 | E28: 94.67
A30: Ferieberettiget indkomst
A31: Arbejdsmarkedsbidrag: | C31: =E14-E27-E28+C22 ->  | E31: =SUM(C31*D8/100) -> 
A32: Nettoløn: | E32: =E14-SUM(E17:E31) -> 
A34: A-skattepligtig indkomst | D34: =+E32 -> 
A35: Månedligt fradrag: | D35: =D5 -> 0
A36: Skattegrundlag: | D36: =+D34-D35 -> 
A38: Skat: | B38: 39 % af | C38: =+D36 ->  | E38: =ROUND(+(C38/100)*D4,0) -> 
B40: Personale foreningen | C40: 50 | E40: =C40 -> 50
A41: Løn til udbetaling: | E41: =+E32-SUM(E38:E40) -> 
A43: Industrien pension udbetaling | B43: 2740 | C43: -0.47 | D43: =SUM(B43*47/100) -> 1287.8 | E43: =SUM(B43-D43) -> 1452.2
A44: Atp udbetaling | B44: 1925 | C44: -0.47 | D44: =SUM(B44*47/100) -> 904.75 | E44: =SUM(B44-D44) -> 1020.25
A46: Løn udbetaling total | E46: =SUM(E41:E44) -> 
A48: Saldi: | C48: Perioden | E48: År til dato
A49: AM indkomst | C49: =+C31 ->  | E49: =SUM(C49) -> 
A50: A-Indkomst | C50: =+D34 -> 
A51: A Skat | C51: =+E38 -> 
A52: AM bidrag | C52: =+E31 -> 
A53: Ferieberettiget indkomst | C53: =SUM(E14) -> 
A54: FerieOpsparing | C54: =C23 -> 

Sheet April
A1: Lønseddel
C4: Trækprocent: | D4: 39
C5: M.fradrag: | D5: 0
C6: Indu. Pension | D6: 4
C7: Pen. Fritvalg | D7: 4
C8: AM Bidrag | D8: 8
C9: fritvalg | D9: 9.25
C10: Ferieopsparing | D10: 12.5
C11: Fritvalg timeløn | D11: 5.25
A14: LØN | E14: =LønOgTimeberegning!#REF! -> 
A16: Sygeløn
A17: overtid
A18: Feriefridag
A22: Arbejderskiver sundhedfor. | C22: 47.19
A23: Ferie penge 12.5% | B23: =E14 ->  | C23: =SUM(B23*D10/100) -> 
A24: Fritvalg 9,25% | B24: =E14 ->  | C24: =SUM(B24*D9/100) -> 
A25: pension betaling Fritvalg 4 % | B25: =E14 ->  | D25: =SUM(B25*D7/100) -> 
A26: Fritvalg konto timeløn 5,25% | B26: =E14 ->  | C26: =SUM(B26*D11/100) -> 
A27: Industriens pension 4% | B27: =SUM(E14,C23,C24) ->  | E27: =SUM(B27*D6/100) -> 
A28: Atp bidrag | B28: =D14 -> 0 | E28: 94.67
A30: Ferieberettiget indkomst
A31: Arbejdsmarkedsbidrag: | C31: =E14-E27-E28+C22 ->  | E31: =SUM(C31*D8/100) -> 
A32: Nettoløn: | E32: =E14-SUM(E17:E31) -> 
A34: A-skattepligtig indkomst | D34: =+E32 -> 
A35: Månedligt fradrag: | D35: =D5 -> 0
A36: Skattegrundlag: | D36: =+D34-D35 -> 
A38: Skat: | B38: 39 % af | C38: =+D36 ->  | E38: =ROUND(+(C38/100)*D4,0) -> 
B40: Personale foreningen | C40: 50 | E40: =C40 -> 50
A41: Løn til udbetaling: | E41: =+E32-SUM(E38:E40) -> 
A43: Industrien pension udbetaling | B43: 2740 | C43: -0.47 | D43: =SUM(B43*47/100) -> 1287.8 | E43: =SUM(B43-D43) -> 1452.2
A44: Atp udbetaling | B44: 1925 | C44: -0.47 | D44: =SUM(B44*47/100) -> 904.75 | E44: =SUM(B44-D44) -> 1020.25
A46: Løn udbetaling total | E46: =SUM(E41:E44) -> 
A48: Saldi: | C48: Perioden | E48: År til dato
A49: AM indkomst | C49: =+C31 ->  | E49: =SUM(C49) -> 
A50: A-Indkomst | C50: =+D34 -> 
A51: A Skat | C51: =+E38 -> 
A52: AM bidrag | C52: =+E31 -> 
A53: Ferieberettiget indkomst | C53: =SUM(E14) -> 
A54: FerieOpsparing | C54: =C23 -> 

Sheet Maj
A1: Lønseddel
C4: Trækprocent: | D4: 39
C5: M.fradrag: | D5: 0
C6: Indu. Pension | D6: 4
C7: Pen. Fritvalg | D7: 4
C8: AM Bidrag | D8: 8
C9: fritvalg | D9: 9.25
C10: Ferieopsparing | D10: 12.5
C11: Fritvalg timeløn | D11: 5.25
A14: LØN | E14: =LønOgTimeberegning!#REF! -> 
A16: Sygeløn
A17: overtid
A18: Feriefridag
A22: Arbejderskiver sundhedfor. | C22: 47.19
A23: Ferie penge 12.5% | B23: =E14 ->  | C23: =SUM(B23*D10/100) -> 
A24: Fritvalg 9,25% | B24: =E14 ->  | C24: =SUM(B24*D9/100) -> 
A25: pension betaling Fritvalg 4 % | B25: =E14 ->  | D25: =SUM(B25*D7/100) -> 
A26: Fritvalg konto timeløn 5,25% | B26: =E14 ->  | C26: =SUM(B26*D11/100) -> 
A27: Industriens pension 4% | B27: =SUM(E14,C23,C24) ->  | E27: =SUM(B27*D6/100) -> 
A28: Atp bidrag | B28: =D14 -> 0 | E28: 94.67
A30: Ferieberettiget indkomst
A31: Arbejdsmarkedsbidrag: | C31: =E14-E27-E28+C22 ->  | E31: =SUM(C31*D8/100) -> 
A32: Nettoløn: | E32: =E14-SUM(E17:E31) -> 
A34: A-skattepligtig indkomst | D34: =+E32 -> 
A35: Månedligt fradrag: | D35: =D5 -> 0
A36: Skattegrundlag: | D36: =+D34-D35 -> 
A38: Skat: | B38: 39 % af | C38: =+D36 ->  | E38: =ROUND(+(C38/100)*D4,0) -> 
B40: Personale foreningen | C40: 50 | E40: =C40 -> 50
A41: Løn til udbetaling: | E41: =+E32-SUM(E38:E40) -> 
A43: Industrien pension udbetaling | B43: 2740 | C43: -0.47 | D43: =SUM(B43*47/100) -> 1287.8 | E43: =SUM(B43-D43) -> 1452.2
A44: Atp udbetaling | B44: 1925 | C44: -0.47 | D44: =SUM(B44*47/100) -> 904.75 | E44: =SUM(B44-D44) -> 1020.25
A46: Løn udbetaling total | E46: =SUM(E41:E44) -> 
A48: Saldi: | C48: Perioden | E48: År til dato
A49: AM indkomst | C49: =+C31 ->  | E49: =SUM(C49) -> 
A50: A-Indkomst | C50: =+D34 -> 
A51: A Skat | C51: =+E38 -> 
A52: AM bidrag | C52: =+E31 -> 
A53: Ferieberettiget indkomst | C53: =SUM(E14) -> 
A54: FerieOpsparing | C54: =C23 -> 

Sheet Juni
A1: Lønseddel
C4: Trækprocent: | D4: 39
C5: M.fradrag: | D5: 0
C6: Indu. Pension | D6: 4
C7: Pen. Fritvalg | D7: 4
C8: AM Bidrag | D8: 8
C9: fritvalg | D9: 9.25
C10: Ferieopsparing | D10: 12.5
C11: Fritvalg timeløn | D11: 5.25
A14: LØN | E14: =LønOgTimeberegning!#REF! -> 
A16: Sygeløn
A17: overtid
A18: Feriefridag
A22: Arbejderskiver sundhedfor. | C22: 47.19
A23: Ferie penge 12.5% | B23: =E14 ->  | C23: =SUM(B23*D10/100) -> 
A24: Fritvalg 9,25% | B24: =E14 ->  | C24: =SUM(B24*D9/100) -> 
A25: pension betaling Fritvalg 4 % | B25: =E14 ->  | D25: =SUM(B25*D7/100) -> 
A26: Fritvalg konto timeløn 5,25% | B26: =E14 ->  | C26: =SUM(B26*D11/100) -> 
A27: Industriens pension 4% | B27: =SUM(E14,C23,C24) ->  | E27: =SUM(B27*D6/100) -> 
A28: Atp bidrag | B28: =D14 -> 0 | E28: 94.67
A30: Ferieberettiget indkomst
A31: Arbejdsmarkedsbidrag: | C31: =E14-E27-E28+C22 ->  | E31: =SUM(C31*D8/100) -> 
A32: Nettoløn: | E32: =E14-SUM(E17:E31) -> 
A34: A-skattepligtig indkomst | D34: =+E32 -> 
A35: Månedligt fradrag: | D35: =D5 -> 0
A36: Skattegrundlag: | D36: =+D34-D35 -> 
A38: Skat: | B38: 39 % af | C38: =+D36 ->  | E38: =ROUND(+(C38/100)*D4,0) -> 
B40: Personale foreningen | C40: 50 | E40: =C40 -> 50
A41: Løn til udbetaling: | E41: =+E32-SUM(E38:E40) -> 
A43: Industrien pension udbetaling | B43: 2740 | C43: -0.47 | D43: =SUM(B43*47/100) -> 1287.8 | E43: =SUM(B43-D43) -> 1452.2
A44: Atp udbetaling | B44: 1925 | C44: -0.47 | D44: =SUM(B44*47/100) -> 904.75 | E44: =SUM(B44-D44) -> 1020.25
A46: Løn udbetaling total | E46: =SUM(E41:E44) -> 
A48: Saldi: | C48: Perioden | E48: År til dato
A49: AM indkomst | C49: =+C31 ->  | E49: =SUM(C49) -> 
A50: A-Indkomst | C50: =+D34 -> 
A51: A Skat | C51: =+E38 -> 
A52: AM bidrag | C52: =+E31 -> 
A53: Ferieberettiget indkomst | C53: =SUM(E14) -> 
A54: FerieOpsparing | C54: =C23 -> 

Sheet Juli
A1: Lønseddel
C4: Trækprocent: | D4: 39
C5: M.fradrag: | D5: 0
C6: Indu. Pension | D6: 4
C7: Pen. Fritvalg | D7: 4
C8: AM Bidrag | D8: 8
C9: fritvalg | D9: 9.25
C10: Ferieopsparing | D10: 12.5
C11: Fritvalg timeløn | D11: 5.25
A14: LØN | E14: =LønOgTimeberegning!#REF! -> 
A16: Sygeløn
A17: overtid
A18: Feriefridag
A22: Arbejderskiver sundhedfor. | C22: 47.19
A23: Ferie penge 12.5% | B23: =E14 ->  | C23: =SUM(B23*D10/100) -> 
A24: Fritvalg 9,25% | B24: =E14 ->  | C24: =SUM(B24*D9/100) -> 
A25: pension betaling Fritvalg 4 % | B25: =E14 ->  | D25: =SUM(B25*D7/100) -> 
A26: Fritvalg konto timeløn 5,25% | B26: =E14 ->  | C26: =SUM(B26*D11/100) -> 
A27: Industriens pension 4% | B27: =SUM(E14,C23,C24) ->  | E27: =SUM(B27*D6/100) -> 
A28: Atp bidrag | B28: =D14 -> 0 | E28: 94.67
A30: Ferieberettiget indkomst
A31: Arbejdsmarkedsbidrag: | C31: =E14-E27-E28+C22 ->  | E31: =SUM(C31*D8/100) -> 
A32: Nettoløn: | E32: =E14-SUM(E17:E31) -> 
A34: A-skattepligtig indkomst | D34: =+E32 -> 
A35: Månedligt fradrag: | D35: =D5 -> 0
A36: Skattegrundlag: | D36: =+D34-D35 -> 
A38: Skat: | B38: 39 % af | C38: =+D36 ->  | E38: =ROUND(+(C38/100)*D4,0) -> 
B40: Personale foreningen | C40: 50 | E40: =C40 -> 50
A41: Løn til udbetaling: | E41: =+E32-SUM(E38:E40) -> 
A43: Industrien pension udbetaling | B43: 2740 | C43: -0.47 | D43: =SUM(B43*47/100) -> 1287.8 | E43: =SUM(B43-D43) -> 1452.2
A44: Atp udbetaling | B44: 1925 | C44: -0.47 | D44: =SUM(B44*47/100) -> 904.75 | E44: =SUM(B44-D44) -> 1020.25
A46: Løn udbetaling total | E46: =SUM(E41:E44) -> 
A48: Saldi: | C48: Perioden | E48: År til dato
A49: AM indkomst | C49: =+C31 ->  | E49: =SUM(C49) -> 
A50: A-Indkomst | C50: =+D34 -> 
A51: A Skat | C51: =+E38 -> 
A52: AM bidrag | C52: =+E31 -> 
A53: Ferieberettiget indkomst | C53: =SUM(E14) -> 
A54: FerieOpsparing | C54: =C23 -> 

Sheet August
A1: Lønseddel
C4: Trækprocent: | D4: 39
C5: M.fradrag: | D5: 0
C6: Indu. Pension | D6: 4
C7: Pen. Fritvalg | D7: 4
C8: AM Bidrag | D8: 8
C9: fritvalg | D9: 9.25
C10: Ferieopsparing | D10: 12.5
C11: Fritvalg timeløn | D11: 5.25
A14: LØN | E14: =LønOgTimeberegning!#REF! -> 
A16: Sygeløn
A17: overtid
A18: Feriefridag
A22: Arbejderskiver sundhedfor. | C22: 47.19
A23: Ferie penge 12.5% | B23: =E14 ->  | C23: =SUM(B23*D10/100) -> 
A24: Fritvalg 9,25% | B24: =E14 ->  | C24: =SUM(B24*D9/100) -> 
A25: pension betaling Fritvalg 4 % | B25: =E14 ->  | D25: =SUM(B25*D7/100) -> 
A26: Fritvalg konto timeløn 5,25% | B26: =E14 ->  | C26: =SUM(B26*D11/100) -> 
A27: Industriens pension 4% | B27: =SUM(E14,C23,C24) ->  | E27: =SUM(B27*D6/100) -> 
A28: Atp bidrag | B28: =D14 -> 0 | E28: 94.67
A30: Ferieberettiget indkomst
A31: Arbejdsmarkedsbidrag: | C31: =E14-E27-E28+C22 ->  | E31: =SUM(C31*D8/100) -> 
A32: Nettoløn: | E32: =E14-SUM(E17:E31) -> 
A34: A-skattepligtig indkomst | D34: =+E32 -> 
A35: Månedligt fradrag: | D35: =D5 -> 0
A36: Skattegrundlag: | D36: =+D34-D35 -> 
A38: Skat: | B38: 39 % af | C38: =+D36 ->  | E38: =ROUND(+(C38/100)*D4,0) -> 
B40: Personale foreningen | C40: 50 | E40: =C40 -> 50
A41: Løn til udbetaling: | E41: =+E32-SUM(E38:E40) -> 
A43: Industrien pension udbetaling | B43: 2740 | C43: -0.47 | D43: =SUM(B43*47/100) -> 1287.8 | E43: =SUM(B43-D43) -> 1452.2
A44: Atp udbetaling | B44: 1925 | C44: -0.47 | D44: =SUM(B44*47/100) -> 904.75 | E44: =SUM(B44-D44) -> 1020.25
A46: Løn udbetaling total | E46: =SUM(E41:E44) -> 
A48: Saldi: | C48: Perioden | E48: År til dato
A49: AM indkomst | C49: =+C31 ->  | E49: =SUM(C49) -> 
A50: A-Indkomst | C50: =+D34 -> 
A51: A Skat | C51: =+E38 -> 
A52: AM bidrag | C52: =+E31 -> 
A53: Ferieberettiget indkomst | C53: =SUM(E14) -> 
A54: FerieOpsparing | C54: =C23 -> 

Sheet September
A1: Lønseddel
C4: Trækprocent: | D4: 39
C5: M.fradrag: | D5: 0
C6: Indu. Pension | D6: 4
C7: Pen. Fritvalg | D7: 4
C8: AM Bidrag | D8: 8
C9: fritvalg | D9: 9.25
C10: Ferieopsparing | D10: 12.5
C11: Fritvalg timeløn | D11: 5.25
A14: LØN | E14: =LønOgTimeberegning!#REF! -> 
A16: Sygeløn
A17: overtid
A18: Feriefridag
A22: Arbejderskiver sundhedfor. | C22: 47.19
A23: Ferie penge 12.5% | B23: =E14 ->  | C23: =SUM(B23*D10/100) -> 
A24: Fritvalg 9,25% | B24: =E14 ->  | C24: =SUM(B24*D9/100) -> 
A25: pension betaling Fritvalg 4 % | B25: =E14 ->  | D25: =SUM(B25*D7/100) -> 
A26: Fritvalg konto timeløn 5,25% | B26: =E14 ->  | C26: =SUM(B26*D11/100) -> 
A27: Industriens pension 4% | B27: =SUM(E14,C23,C24) ->  | E27: =SUM(B27*D6/100) -> 
A28: Atp bidrag | B28: =D14 -> 0 | E28: 94.67
A30: Ferieberettiget indkomst
A31: Arbejdsmarkedsbidrag: | C31: =E14-E27-E28+C22 ->  | E31: =SUM(C31*D8/100) -> 
A32: Nettoløn: | E32: =E14-SUM(E17:E31) -> 
A34: A-skattepligtig indkomst | D34: =+E32 -> 
A35: Månedligt fradrag: | D35: =D5 -> 0
A36: Skattegrundlag: | D36: =+D34-D35 -> 
A38: Skat: | B38: 39 % af | C38: =+D36 ->  | E38: =ROUND(+(C38/100)*D4,0) -> 
B40: Personale foreningen | C40: 50 | E40: =C40 -> 50
A41: Løn til udbetaling: | E41: =+E32-SUM(E38:E40) -> 
A43: Industrien pension udbetaling | B43: 2740 | C43: -0.47 | D43: =SUM(B43*47/100) -> 1287.8 | E43: =SUM(B43-D43) -> 1452.2
A44: Atp udbetaling | B44: 1925 | C44: -0.47 | D44: =SUM(B44*47/100) -> 904.75 | E44: =SUM(B44-D44) -> 1020.25
A46: Løn udbetaling total | E46: =SUM(E41:E44) -> 
A48: Saldi: | C48: Perioden | E48: År til dato
A49: AM indkomst | C49: =+C31 ->  | E49: =SUM(C49) -> 
A50: A-Indkomst | C50: =+D34 -> 
A51: A Skat | C51: =+E38 -> 
A52: AM bidrag | C52: =+E31 -> 
A53: Ferieberettiget indkomst | C53: =SUM(E14) -> 
A54: FerieOpsparing | C54: =C23 -> 

Sheet Oktober
A1: Lønseddel
C4: Trækprocent: | D4: 39
C5: M.fradrag: | D5: 0
C6: Indu. Pension | D6: 4
C7: Pen. Fritvalg | D7: 4
C8: AM Bidrag | D8: 8
C9: fritvalg | D9: 9.25
C10: Ferieopsparing | D10: 12.5
C11: Fritvalg timeløn | D11: 5.25
A14: LØN | E14: =LønOgTimeberegning!#REF! -> 
A16: Sygeløn
A17: overtid
A18: Feriefridag
A22: Arbejderskiver sundhedfor. | C22: 47.19
A23: Ferie penge 12.5% | B23: =E14 ->  | C23: =SUM(B23*D10/100) -> 
A24: Fritvalg 9,25% | B24: =E14 ->  | C24: =SUM(B24*D9/100) -> 
A25: pension betaling Fritvalg 4 % | B25: =E14 ->  | D25: =SUM(B25*D7/100) -> 
A26: Fritvalg konto timeløn 5,25% | B26: =E14 ->  | C26: =SUM(B26*D11/100) -> 
A27: Industriens pension 4% | B27: =SUM(E14,C23,C24) ->  | E27: =SUM(B27*D6/100) -> 
A28: Atp bidrag | B28: =D14 -> 0 | E28: 94.67
A30: Ferieberettiget indkomst
A31: Arbejdsmarkedsbidrag: | C31: =E14-E27-E28+C22 ->  | E31: =SUM(C31*D8/100) -> 
A32: Nettoløn: | E32: =E14-SUM(E17:E31) -> 
A34: A-skattepligtig indkomst | D34: =+E32 -> 
A35: Månedligt fradrag: | D35: =D5 -> 0
A36: Skattegrundlag: | D36: =+D34-D35 -> 
A38: Skat: | B38: 39 % af | C38: =+D36 ->  | E38: =ROUND(+(C38/100)*D4,0) -> 
B40: Personale foreningen | C40: 50 | E40: =C40 -> 50
A41: Løn til udbetaling: | E41: =+E32-SUM(E38:E40) -> 
A43: Industrien pension udbetaling | B43: 2740 | C43: -0.47 | D43: =SUM(B43*47/100) -> 1287.8 | E43: =SUM(B43-D43) -> 1452.2
A44: Atp udbetaling | B44: 1925 | C44: -0.47 | D44: =SUM(B44*47/100) -> 904.75 | E44: =SUM(B44-D44) -> 1020.25
A46: Løn udbetaling total | E46: =SUM(E41:E44) -> 
A48: Saldi: | C48: Perioden | E48: År til dato
A49: AM indkomst | C49: =+C31 ->  | E49: =SUM(C49) -> 
A50: A-Indkomst | C50: =+D34 -> 
A51: A Skat | C51: =+E38 -> 
A52: AM bidrag | C52: =+E31 -> 
A53: Ferieberettiget indkomst | C53: =SUM(E14) -> 
A54: FerieOpsparing | C54: =C23 -> 

Sheet November
A1: Lønseddel
C4: Trækprocent: | D4: 39
C5: M.fradrag: | D5: 0
C6: Indu. Pension | D6: 4
C7: Pen. Fritvalg | D7: 4
C8: AM Bidrag | D8: 8
C9: fritvalg | D9: 9.25
C10: Ferieopsparing | D10: 12.5
C11: Fritvalg timeløn | D11: 5.25
A14: LØN | E14: =LønOgTimeberegning!#REF! -> 
A16: Sygeløn
A17: overtid
A18: Feriefridag
A22: Arbejderskiver sundhedfor. | C22: 47.19
A23: Ferie penge 12.5% | B23: =E14 ->  | C23: =SUM(B23*D10/100) -> 
A24: Fritvalg 9,25% | B24: =E14 ->  | C24: =SUM(B24*D9/100) -> 
A25: pension betaling Fritvalg 4 % | B25: =E14 ->  | D25: =SUM(B25*D7/100) -> 
A26: Fritvalg konto timeløn 5,25% | B26: =E14 ->  | C26: =SUM(B26*D11/100) -> 
A27: Industriens pension 4% | B27: =SUM(E14,C23,C24) ->  | E27: =SUM(B27*D6/100) -> 
A28: Atp bidrag | B28: =D14 -> 0 | E28: 94.67
A30: Ferieberettiget indkomst
A31: Arbejdsmarkedsbidrag: | C31: =E14-E27-E28+C22 ->  | E31: =SUM(C31*D8/100) -> 
A32: Nettoløn: | E32: =E14-SUM(E17:E31) -> 
A34: A-skattepligtig indkomst | D34: =+E32 -> 
A35: Månedligt fradrag: | D35: =D5 -> 0
A36: Skattegrundlag: | D36: =+D34-D35 -> 
A38: Skat: | B38: 39 % af | C38: =+D36 ->  | E38: =ROUND(+(C38/100)*D4,0) -> 
B40: Personale foreningen | C40: 50 | E40: =C40 -> 50
A41: Løn til udbetaling: | E41: =+E32-SUM(E38:E40) -> 
A43: Industrien pension udbetaling | B43: 2740 | C43: -0.47 | D43: =SUM(B43*47/100) -> 1287.8 | E43: =SUM(B43-D43) -> 1452.2
A44: Atp udbetaling | B44: 1925 | C44: -0.47 | D44: =SUM(B44*47/100) -> 904.75 | E44: =SUM(B44-D44) -> 1020.25
A46: Løn udbetaling total | E46: =SUM(E41:E44) -> 
A48: Saldi: | C48: Perioden | E48: År til dato
A49: AM indkomst | C49: =+C31 ->  | E49: =SUM(C49) -> 
A50: A-Indkomst | C50: =+D34 -> 
A51: A Skat | C51: =+E38 -> 
A52: AM bidrag | C52: =+E31 -> 
A53: Ferieberettiget indkomst | C53: =SUM(E14) -> 
A54: FerieOpsparing | C54: =C23 -> 

Sheet December
A1: Lønseddel
C4: Trækprocent: | D4: 39
C5: M.fradrag: | D5: 0
C6: Indu. Pension | D6: 4
C7: Pen. Fritvalg | D7: 4
C8: AM Bidrag | D8: 8
C9: fritvalg | D9: 9.25
C10: Ferieopsparing | D10: 12.5
C11: Fritvalg timeløn | D11: 5.25
A14: LØN | E14: =LønOgTimeberegning!#REF! -> 
A16: Sygeløn
A17: overtid
A18: Feriefridag
A22: Arbejderskiver sundhedfor. | C22: 47.19
A23: Ferie penge 12.5% | B23: =E14 ->  | C23: =SUM(B23*D10/100) -> 
A24: Fritvalg 9,25% | B24: =E14 ->  | C24: =SUM(B24*D9/100) -> 
A25: pension betaling Fritvalg 4 % | B25: =E14 ->  | D25: =SUM(B25*D7/100) -> 
A26: Fritvalg konto timeløn 5,25% | B26: =E14 ->  | C26: =SUM(B26*D11/100) -> 
A27: Industriens pension 4% | B27: =SUM(E14,C23,C24) ->  | E27: =SUM(B27*D6/100) -> 
A28: Atp bidrag | B28: =D14 -> 0 | E28: 94.67
A30: Ferieberettiget indkomst
A31: Arbejdsmarkedsbidrag: | C31: =E14-E27-E28+C22 ->  | E31: =SUM(C31*D8/100) -> 
A32: Nettoløn: | E32: =E14-SUM(E17:E31) -> 
A34: A-skattepligtig indkomst | D34: =+E32 -> 
A35: Månedligt fradrag: | D35: =D5 -> 0
A36: Skattegrundlag: | D36: =+D34-D35 -> 
A38: Skat: | B38: 39 % af | C38: =+D36 ->  | E38: =ROUND(+(C38/100)*D4,0) -> 
B40: Personale foreningen | C40: 50 | E40: =C40 -> 50
A41: Løn til udbetaling: | E41: =+E32-SUM(E38:E40) -> 
A43: Industrien pension udbetaling | B43: 2740 | C43: -0.47 | D43: =SUM(B43*47/100) -> 1287.8 | E43: =SUM(B43-D43) -> 1452.2
A44: Atp udbetaling | B44: 1925 | C44: -0.47 | D44: =SUM(B44*47/100) -> 904.75 | E44: =SUM(B44-D44) -> 1020.25
A46: Løn udbetaling total | E46: =SUM(E41:E44) -> 
A48: Saldi: | C48: Perioden | E48: År til dato
A49: AM indkomst | C49: =+C31 ->  | E49: =SUM(C49) -> 
A50: A-Indkomst | C50: =+D34 -> 
A51: A Skat | C51: =+E38 -> 
A52: AM bidrag | C52: =+E31 -> 
A53: Ferieberettiget indkomst | C53: =SUM(E14) -> 
A54: FerieOpsparing | C54: =C23 -> 

Sheet Hele Året
A2: Saldi: | D2: År til dato
A3: AM indkomst | D3: =SUM(#REF!) -> 
A4: A-Indkomst | D4: =SUM(#REF!) -> 
A5: A Skat | D5: =SUM(#REF!) -> 
A6: AM bidrag | D6: =SUM(#REF!) -> 
A7: Ferieberettiget indkomst | D7: =SUM(#REF!) -> 
A8: FerieOpsparing | D8: =SUM(#REF!) -> 
